bitfinex-derivatives/quotes_ETHF0:USTF0_20250116
["timestamp","ask_amount","ask_price","bid_price","bid_amount"]
[1737020583390,0.60307,3316.9,3316.8,4.63597]
[1737020584384,0.60306,3317.1,3317.0,0.60304]
[1737020584583,3.2078,3317.3,3316.8,4.0329]
[1737020584794,0.60307,3317.0,3316.9,0.60306]
[1737020585995,0.60299,3317.4,3317.3,0.60298]
[1737020586489,0.60294,3317.7,3317.6,0.60293]
[1737020586792,1.50701,3318.4,3317.6,2.41814601]
[1737020586994,0.60288,3318.0,3317.9,0.60288]
[1737020587185,0.60288,3318.0,3317.9,1.89088]
[1737020587391,0.60288,3318.0,3317.9,1.288]
[1737020589685,0.60288,3318.0,3317.9,1.89089]
[1737020592000,0.60286,3318.1,3318.0,0.60287]
[1737020592198,2.6801,3318.5,3318.0,1.3009]
[1737020592396,0.60283,3318.4,3318.3,0.6028]
[1737020593299,2.6801,3318.5,3318.1,1.2782]
[1737020593300,0.60284,3318.3,3318.2,0.60283]
[1737020595399,0.60282,3318.4,3318.3,0.6028]
[1737020597196,2.6801,3318.5,3318.4,0.6028]
[1737020597197,3.28292,3318.5,3318.4,0.6028]
[1737020597899,0.60282,3318.5,3318.4,0.6028]
[1737020598996,2.41814601,3319.4,3318.2,3.65554601]
[1737020599203,1.50669,3319.2,3318.5,2.41814601]
[1737020599401,0.60276,3318.7,3318.6,0.60275]
[1737020600198,1.3662,3318.8,3318.5,2.41814601]
[1737020600395,0.60272,3318.9,3318.8,0.60273]
[1737020600902,0.6027,3319.0,3318.9,0.60268]
[1737020601502,1.3241,3319.2,3318.7,1.286]
[1737020601503,0.60268,3319.1,3319.0,0.60267]
[1737020601802,3.2078,3319.4,3318.9,1.50678]
[1737020601997,0.60265,3319.3,3319.2,0.60264]
[1737020602210,0.60265,3319.3,3319.2,1.96604]
[1737020603599,0.60265,3319.3,3319.2,1.3634]
[1737020605196,3.2078,3319.4,3318.8,3.68604601]
[1737020605400,0.60269,3319.1,3319.0,0.60267]
[1737020609104,0.60267,3319.1,3319.0,1.88869]
[1737020610106,0.60267,3319.1,3319.0,1.286]
[1737020610501,0.60267,3319.1,3319.0,1.88869]
[1737020611009,0.60267,3319.1,3319.0,1.286]
[1737020611206,0.60267,3319.1,3319.0,1.88869]
[1737020612809,0.60267,3319.2,3319.1,0.60265]
[1737020613112,0.60267,3319.2,3319.1,3.02079601]
[1737020614310,0.60267,3319.2,3319.1,3.02081601]
[1737020618412,0.60267,3319.2,3319.1,4.29191601]
[1737020620412,5.7295,3319.7,3319.6,0.60258]
[1737020620413,0.60257,3319.7,3319.6,0.60258]
[1737020620715,0.60257,3319.7,3319.6,3.02072601]
[1737020621212,3.2078,3320.1,3319.6,2.41814601]
[1737020621406,0.60255,3319.9,3319.8,0.60253]
[1737020623111,0.60255,3319.8,3319.7,3.24815]
[1737020623320,0.60255,3319.8,3319.7,2.6456]
[1737020624705,0.60255,3319.8,3319.7,3.24816]
[1737020624911,0.60255,3319.8,3319.7,2.6456]
[1737020625313,0.60255,3319.8,3319.7,3.24816]
[1737020625615,0.60255,3319.8,3319.7,2.6456]
[1737020626015,0.60255,3319.8,3319.7,3.24816]
[1737020626819,0.60255,3319.8,3319.7,2.6456]
[1737020627524,0.60255,3319.8,3319.7,3.24817]
[1737020629320,0.60255,3319.8,3319.7,6.45597]
[1737020629722,0.60254,3320.0,3319.9,0.6025]
[1737020630029,0.60254,3320.0,3319.9,3.02064601]
[1737020630924,0.60251,3320.1,3320.0,0.60249]
[1737020634724,2.6268,3320.4,3319.9,2.41814601]
[1737020634725,1.3417,3320.4,3319.9,2.41814601]
[1737020634928,0.60249,3320.3,3320.2,3.02060601]
[1737020636123,0.60249,3320.3,3320.2,6.22840601]
[1737020636622,0.60243,3320.6,3320.5,0.6024]
[1737020636823,0.6024,3320.7,3320.6,0.60238]
[1737020637019,0.6024,3320.7,3320.6,6.22832601]
[1737020638027,0.60238,3320.8,3320.7,0.60237]
[1737020638830,3.2078,3321.0,3320.6,5.62594601]
[1737020639023,0.60238,3320.7,3320.6,5.62594601]
[1737020639524,0.60238,3320.7,3320.6,6.22834601]
[1737020640025,0.60238,3320.7,3320.6,5.62594601]
[1737020640228,0.60238,3320.7,3320.6,6.22834601]
[1737020640428,0.60238,3320.7,3320.6,5.62594601]
[1737020641533,0.60238,3320.7,3320.6,6.22834601]
[1737020643025,0.60238,3320.7,3320.6,5.62594601]
[1737020643227,0.60238,3320.7,3320.6,6.22834601]
[1737020643630,0.60238,3320.7,3320.6,5.62594601]
[1737020646333,1.5058,3321.1,3320.6,5.62594601]
[1737020646538,0.60237,3320.9,3320.8,0.60235]
[1737020646729,0.60238,3320.8,3320.7,0.60237]
[1737020647632,2.75508,3321.2,3320.6,5.62594601]
[1737020647940,0.60238,3320.7,3320.6,6.22834601]
[1737020648129,0.60238,3320.7,3320.6,5.62594601]
[1737020648331,0.60238,3320.7,3320.6,6.90024601]
[1737020651731,0.60238,3320.7,3320.6,7.50264601]
[1737020653035,1.50582,3321.1,3320.6,6.90024601]
[1737020653241,0.60238,3320.8,3320.7,0.60236]
[1737020654845,1.2493,3321.2,3320.6,6.90024601]
[1737020655142,0.60229,3321.2,3321.1,3.02044601]
[1737020662241,1.287,3321.3,3321.0,3.2078]
[1737020662440,0.60231,3321.1,3321.0,3.2078]
[1737020664152,0.60231,3321.1,3321.0,5.14563]
[1737020664451,0.6023,3321.2,3321.1,0.60229]
[1737020664750,0.6023,3321.2,3321.1,4.35583601]
[1737020665661,0.6023,3321.2,3321.1,5.61153601]
[1737020667255,1.2412,3321.4,3321.1,5.00924601]
[1737020667448,0.60229,3321.3,3321.2,0.60227]
[1737020668155,1.2412,3321.4,3321.1,5.00924601]
[1737020668356,1.2387,3321.6,3321.1,5.00924601]
[1737020668357,0.60225,3321.5,3321.4,0.60226]
[1737020668551,0.60225,3321.5,3321.4,3.02040601]
[1737020668852,1.84093,3321.6,3321.5,0.60224]
[1737020670353,0.60224,3321.5,3321.4,2.41814601]
[1737020670655,0.60224,3321.5,3321.4,3.02040601]
[1737020673860,0.60219,3321.9,3321.8,0.60216]
[1737020674061,0.60219,3321.9,3321.8,4.30230601]
[1737020679154,7.38155,3322.3,3321.8,3.70014601]
[1737020679356,0.60211,3322.2,3322.1,2.41814601]
[1737020680360,0.60211,3322.2,3322.1,3.02027601]
[1737020681158,0.60211,3322.2,3322.1,2.41814601]
[1737020681667,0.60211,3322.2,3322.1,3.02027601]
[1737020688468,0.60211,3322.2,3322.1,2.41814601]
[1737020688966,0.60211,3322.2,3322.1,3.02027601]
[1737020693171,1.50505,3322.8,3322.1,2.41814601]
[1737020693372,0.6021,3322.4,3322.3,0.60207]
[1737020693768,0.6021,3322.4,3322.3,1.96707]
[1737020693974,0.6021,3322.4,3322.3,1.96443243]
[1737020694369,0.60208,3322.5,3322.4,0.60205]
[1737020694576,0.60208,3322.5,3322.4,3.02019601]
[1737020694876,0.60206,3322.6,3322.5,0.60203]
[1737020695175,0.60206,3322.6,3322.5,1.88203]
[1737020696268,0.60206,3322.6,3322.5,1.28]
[1737020696575,0.60206,3322.6,3322.5,1.88206]
[1737020697477,3.2078,3323.6,3322.5,2.36764961]
[1737020697673,3.2078,3323.6,3323.2,1.08764961]
[1737020697674,0.60191,3323.3,3323.2,1.08764961]
[1737020699478,0.60195,3323.1,3323.0,0.60196]
[1737020699778,0.60198,3323.0,3322.9,0.60198]
[1737020699975,0.60185,3323.7,3322.8,2.40961343]
[1737020700272,0.6018,3324.0,3323.9,0.60179]
[1737020700471,0.6018,3324.0,3323.9,3.01140343]
[1737020700779,0.6018,3324.0,3323.9,3.01141343]
[1737020701378,4.5564,3324.1,3323.9,2.40961343]
[1737020701576,3.80958,3324.1,3324.0,0.60179]
[1737020703080,3.2078,3324.1,3323.9,2.40961343]
[1737020703279,0.60179,3324.0,3323.9,2.40961343]
[1737020703476,3.2078,3324.1,3323.6,3.77451343]
[1737020703674,0.60184,3323.7,3323.6,2.40961343]
[1737020703979,1.3106,3323.9,3323.4,1.28]
[1737020704174,0.60188,3323.5,3323.4,1.28]
[1737020704381,0.60189,3323.4,3323.3,6.95841343]
[1737020706577,0.60189,3323.4,3323.3,3.75061343]
[1737020709177,0.60189,3323.4,3323.3,2.40961343]
[1737020714986,0.60189,3323.4,3323.3,3.01152343]
[1737020715583,0.60189,3323.4,3323.3,4.42552343]
[1737020715788,0.60189,3323.4,3323.3,3.82361343]
[1737020716184,0.60189,3323.4,3323.3,4.42552343]
[1737020717384,0.60189,3323.4,3323.3,3.82361343]
[1737020717889,0.60189,3323.4,3323.3,2.40961343]
[1737020721189,0.60189,3323.4,3323.3,3.01152343]
[1737020721389,0.60189,3323.4,3323.3,2.40961343]
[1737020721794,0.60189,3323.4,3323.3,3.01152343]
[1737020722291,0.60189,3323.4,3323.3,2.40961343]
[1737020722689,3.2078,3323.7,3323.2,1.3237]
[1737020722886,0.60195,3323.1,3323.0,1.36]
[1737020723690,0.60199,3322.9,3322.8,1.92529]
[1737020723894,0.60199,3322.9,3322.8,4.33490343]
[1737020725999,0.60199,3322.9,3322.8,3.73291343]
[1737020726308,0.60199,3322.9,3322.8,1.3233]
[1737020727007,0.602,3322.8,3322.7,1.2875]
[1737020727219,0.60204,3322.6,3322.5,1.365]
[1737020728506,0.60208,3322.4,3322.3,2.40961343]
[1737020728701,0.60208,3322.4,3322.3,5.08761343]
[1737020730608,0.60208,3322.4,3322.3,5.68970343]
[1737020731908,3.2078,3322.9,3322.3,5.08761343]
[1737020732113,0.60195,3323.2,3323.1,0.60194]
[1737020732407,3.2078,3323.3,3323.2,0.60191]
[1737020732408,0.60192,3323.3,3323.2,0.60191]
[1737020733010,0.60188,3323.6,3323.5,0.60186]
[1737020733315,3.80965,3323.7,3323.6,0.60186]
[1737020734413,3.2078,3323.7,3323.5,2.40961343]
[1737020734610,0.60186,3323.6,3323.5,3.01147343]
[1737020735608,0.60183,3323.8,3323.7,0.60181]
[1737020735811,4.5311,3324.3,3323.6,1.4023]
[1737020736013,4.5311,3324.3,3323.9,3.01140343]
[1737020736014,0.6018,3324.0,3323.9,3.01140343]
[1737020736408,0.60178,3324.1,3324.0,0.60178]
[1737020736717,0.60178,3324.1,3324.0,1.4238]
[1737020736912,0.60178,3324.1,3324.0,2.02559]
[1737020737109,0.60178,3324.1,3324.0,1.4238]
[1737020737814,0.60178,3324.1,3324.0,2.02559]
[1737020738206,0.60176,3324.2,3324.1,0.60175]
[1737020739213,1.5042,3324.6,3324.0,1.4238]
[1737020739411,0.60177,3324.1,3324.0,2.02557]
[1737020739916,0.60177,3324.1,3324.0,1.4238]
[1737020740116,0.60177,3324.1,3324.0,2.02559]
[1737020740313,0.60177,3324.1,3324.0,1.4238]
[1737020741821,0.60179,3324.0,3323.9,5.61741343]
[1737020742017,0.60179,3324.0,3323.9,2.40961343]
[1737020742317,0.60179,3324.0,3323.9,3.01141343]
[1737020744419,0.60179,3324.0,3323.9,2.40961343]
[1737020744918,0.60179,3324.0,3323.9,3.01141343]
[1737020747223,0.60177,3324.2,3324.1,0.60175]
[1737020748510,5.9397,3324.7,3324.0,1.3451]
[1737020748722,0.60168,3324.6,3324.5,2.40961343]
[1737020748915,0.60168,3324.6,3324.5,3.70351343]
[1737020750524,0.60173,3324.3,3324.2,3.01135343]
[1737020751018,0.60173,3324.3,3324.2,2.40961343]
[1737020752217,4.0712,3324.5,3324.0,3.915]
[1737020752525,0.60177,3324.1,3324.0,4.51679]
[1737020752823,0.60177,3324.1,3324.0,2.639]
[1737020753027,0.60177,3324.1,3324.0,3.24079]
[1737020753430,0.60177,3324.1,3324.0,2.639]
[1737020753927,0.60177,3324.1,3324.0,43.439]
[1737020754824,0.60177,3324.1,3324.0,40.8]
[1737020756825,0.60177,3324.1,3324.0,41.40179]
[1737020757032,0.60177,3324.1,3324.0,40.8]
[1737020757223,0.60177,3324.1,3324.0,41.40179]
[1737020757527,0.60177,3324.1,3324.0,40.8]
[1737020757921,0.60177,3324.1,3324.0,41.40179]
[1737020759225,0.60177,3324.2,3324.1,0.60174]
[1737020759831,0.60177,3324.2,3324.1,41.40174]
[1737020760238,0.60177,3324.2,3324.1,40.8]
[1737020760823,0.60177,3324.2,3324.1,41.40177]
[1737020761632,0.60174,3324.3,3324.2,0.60172]
[1737020761829,0.60174,3324.3,3324.2,3.01133343]
[1737020762335,0.60173,3324.4,3324.3,0.6017]
[1737020762528,0.60173,3324.4,3324.3,1.9007]
[1737020767332,0.60171,3324.5,3324.4,0.60169]
[1737020771434,3.80948,3324.7,3324.6,0.60168]
[1737020771631,3.80948,3324.7,3324.6,3.01129343]
[1737020777732,1.4106,3325.0,3324.6,3.01129343]
[1737020778046,0.60163,3325.0,3324.9,3.01121343]
[1737020778338,0.60163,3325.0,3324.9,2.40961343]
[1737020778542,0.60163,3325.0,3324.9,3.01123343]
[1737020782938,0.60163,3325.0,3324.9,43.81123343]
[1737020784341,0.60157,3325.2,3325.1,0.60159]
[1737020784540,0.60157,3325.2,3325.1,1.87559]
[1737020786240,0.60157,3325.2,3325.1,1.274]
[1737020787649,0.60159,3325.1,3325.0,0.6016]
[1737020789340,0.60159,3325.2,3325.1,0.60156]
[1737020789640,3.12558724,3325.8,3325.7,0.60148]
[1737020789841,4.5578,3327.0,3325.9,2.40961343]
[1737020790045,4.5578,3327.0,3326.3,3.80917]
[1737020790236,0.60128,3326.8,3326.3,3.80917]
[1737020790442,11.17536891,3326.4,3326.3,6.21878343]
[1737020790936,11.17536891,3326.4,3326.3,47.01878343]
[1737020791548,0.60135,3326.4,3326.3,7.49277343]
[1737020791738,0.60135,3326.4,3326.3,5.61741343]
[1737020791942,0.60135,3326.4,3326.3,3.2078]
[1737020792548,0.60135,3326.4,3326.3,3.80917]
[1737020792750,0.60135,3326.4,3326.3,3.2078]
[1737020793139,0.60135,3326.4,3326.3,3.80917]
[1737020793339,1.3069,3326.7,3326.3,3.2078]
[1737020793651,0.60132,3326.6,3326.5,2.40961343]
[1737020793947,0.60132,3326.6,3326.5,3.01094343]
[1737020794250,0.60132,3326.6,3326.5,2.40961343]
[1737020795445,1.50316,3326.9,3326.3,3.2078]
[1737020795648,0.60135,3326.4,3326.3,3.80916]
[1737020795849,0.60135,3326.4,3326.3,3.2078]
[1737020796045,0.60135,3326.4,3326.3,3.80917]
[1737020796844,1.88824,3326.5,3326.4,0.60135]
[1737020797048,1.3465,3326.9,3326.3,3.2078]
[1737020797247,1.88818,3326.8,3326.7,3.2078]
[1737020797455,1.88818,3326.8,3326.7,3.8091]
[1737020797652,1.50299,3327.3,3326.7,5.61741343]
[1737020797950,1.89552,3327.2,3327.1,3.80903]
[1737020798155,1.89552,3327.2,3327.1,3.2078]
[1737020799253,0.60121,3327.2,3327.1,3.80901]
[1737020799455,0.60121,3327.2,3327.1,3.2078]
[1737020799858,0.60121,3327.2,3327.1,3.80903]
[1737020800053,1.97321,3327.3,3327.2,0.60121]
[1737020800756,0.60121,3327.2,3327.1,3.80901]
[1737020801553,0.6012,3327.3,3327.2,0.6012]
[1737020801755,0.60118,3327.4,3327.3,0.60117]
[1737020802257,0.60118,3327.4,3327.3,0.60118]
[1737020802653,1.2943,3327.5,3327.1,3.2078]
[1737020803052,0.60121,3327.2,3327.1,3.80901]
[1737020803660,1.2943,3327.5,3327.1,3.2078]
[1737020803862,0.6012,3327.3,3327.2,0.60119]
[1737020804861,0.60121,3327.2,3327.1,3.80902]
[1737020805358,1.2943,3327.5,3327.1,3.2078]
[1737020805561,0.60121,3327.3,3327.2,0.60119]
[1737020806159,1.2943,3327.5,3327.1,3.2078]
[1737020806359,1.2943,3327.5,3327.4,0.60117]
[1737020806360,1.89545,3327.5,3327.4,0.60117]
[1737020806862,0.60117,3327.4,3327.3,3.01078343]
[1737020807057,1.2943,3327.5,3327.3,3.01078343]
[1737020807263,1.2943,3327.5,3327.4,0.60117]
[1737020807453,1.89545,3327.5,3327.4,0.60117]
[1737020807650,1.89545,3327.5,3327.4,1.97397]
[1737020808463,0.60108,3328.0,3327.9,0.60107]
[1737020808664,1.50243,3328.6,3327.9,6.88941343]
[1737020808861,0.60104,3328.1,3328.0,2.00145]
[1737020809162,1.50243,3328.6,3328.0,1.4004]
[1737020809355,5.8954,3328.7,3328.3,3.2078]
[1737020809562,0.60099,3328.5,3328.4,0.60098]
[1737020809760,5.8954,3328.7,3328.3,3.2078]
[1737020809953,2.6876,3328.7,3328.3,3.2078]
[1737020810358,0.60098,3328.5,3328.4,0.60098]
[1737020810664,2.6876,3328.7,3328.3,3.2078]
[1737020810665,0.60099,3328.4,3328.3,3.2078]
[1737020811158,2.6876,3328.7,3328.3,3.2078]
[1737020811359,2.6876,3328.7,3328.3,5.61741343]
[1737020811565,0.60098,3328.5,3328.4,0.60098]
[1737020811760,2.6876,3328.7,3328.4,0.60098]
[1737020812163,0.60098,3328.5,3328.3,3.2078]
[1737020812462,2.6876,3328.7,3328.3,3.2078]
[1737020812662,0.60097,3328.6,3328.4,0.60099]
[1737020812866,2.6876,3328.7,3328.4,0.60099]
[1737020813062,2.6876,3328.7,3328.3,3.2078]
[1737020813264,0.60082,3329.4,3329.3,0.60082]
[1737020813562,4.70963,3329.9,3329.4,0.60079]
[1737020813563,0.60079,3329.6,3329.4,0.60079]
[1737020813762,3.9179,3329.8,3329.2,1.272]
[1737020813957,0.60078,3329.6,3329.5,3.80859]
[1737020814169,0.60078,3329.6,3329.5,3.2078]
[1737020814562,3.9179,3329.8,3329.5,3.2078]
[1737020814563,0.60077,3329.7,3329.6,0.60077]
[1737020814762,3.9179,3329.8,3329.5,3.2078]
[1737020814763,0.60077,3329.6,3329.5,3.2078]
[1737020815159,2.637,3329.8,3329.5,5.61741343]
[1737020815365,1.3471,3329.8,3329.7,0.60076]
[1737020815568,0.60071,3330.0,3329.8,0.60073]
[1737020815872,0.60073,3329.9,3329.5,3.2078]
[1737020816071,0.60069,3330.1,3329.9,0.60071]
[1737020816261,2.742,3330.2,3329.7,1.271]
[1737020816457,2.742,3330.2,3329.8,0.60073]
[1737020816658,0.60071,3330.0,3329.7,1.271]
[1737020816871,0.60072,3329.9,3329.8,0.60073]
[1737020817170,0.60073,3329.9,3329.7,1.87175]
[1737020817367,0.60073,3329.9,3329.7,1.87174]
[1737020817568,2.742,3330.2,3329.7,1.271]
[1737020817763,0.60071,3330.0,3329.7,1.271]
[1737020817969,0.60069,3330.1,3329.8,0.60074]
[1737020818169,0.60072,3330.0,3329.8,0.60074]
[1737020818666,4.7092,3330.8,3329.7,3.68061343]
[1737020818872,1.3999,3330.6,3330.1,0.60067]
[1737020819171,1.3999,3330.6,3329.9,3.2078]
[1737020819474,0.60062,3330.5,3330.0,1.2982]
[1737020819672,1.3999,3330.6,3330.3,3.2078]
[1737020819973,0.60061,3330.5,3330.3,3.80843]
[1737020820167,1.3999,3330.6,3330.3,3.2078]
[1737020820372,0.60063,3330.4,3330.3,3.2078]
[1737020823877,3.2078,3330.4,3329.5,1.2982]
[1737020824068,3.2078,3330.4,3329.4,1.271]
[1737020824069,0.60081,3329.5,3329.4,1.271]
[1737020824369,0.60081,3329.5,3329.4,0.60081]
[1737020824576,1.50183,3329.9,3329.3,3.2078]
[1737020824774,0.60081,3329.4,3329.3,3.2078]
[1737020825272,3.2078,3329.9,3329.3,3.2078]
[1737020825472,0.60077,3329.7,3329.6,0.60076]
[1737020826179,3.2078,3329.9,3329.3,4.5308]
[1737020826475,0.60081,3329.4,3329.3,4.5308]
[1737020826665,0.60081,3329.4,3329.3,5.13163]
[1737020826868,0.60081,3329.4,3329.3,4.5308]
[1737020827068,0.60081,3329.4,3329.3,3.2078]
[1737020830074,0.60088,3329.0,3328.9,1.4028]
[1737020830383,4.15331,3329.3,3328.8,3.2078]
[1737020830676,0.6009,3328.9,3328.8,3.2078]
[1737020830981,1.50215,3329.2,3328.8,3.2078]
[1737020831173,0.6009,3328.9,3328.8,3.8087]
[1737020832374,2.6512,3329.3,3328.8,3.2078]
[1737020832580,0.6009,3329.0,3328.9,0.60088]
[1737020833083,0.60089,3329.0,3328.9,0.60088]
[1737020833273,0.60086,3329.2,3329.1,0.60085]
[1737020834176,2.6512,3329.3,3328.9,2.40961343]
[1737020834378,3.25203,3329.3,3329.2,3.80865]
[1737020835284,3.25203,3329.3,3329.2,3.2078]
[1737020837281,1.50219,3329.1,3328.8,4.4778]
[1737020837482,0.6009,3328.9,3328.8,4.4778]
[1737020838287,0.6009,3328.9,3328.8,5.07872]
[1737020839888,1.50209,3329.3,3328.8,4.4778]
[1737020840083,1.502,3329.5,3328.8,4.4778]
[1737020840284,0.60086,3329.3,3329.2,3.2078]
[1737020841186,3.91154343,3329.7,3328.8,3.2078]
[1737020841187,0.6009,3328.9,3328.8,3.2078]
[1737020841788,0.6009,3328.9,3328.8,3.80872]
[1737020841994,0.6009,3328.9,3328.8,3.2078]
[1737020842490,2.40961343,3329.1,3328.3,1.27]
[1737020842788,0.60101,3328.3,3328.2,4.4778]
[1737020842982,0.60101,3328.3,3328.2,3.80883]
[1737020843883,0.60101,3328.4,3328.3,0.60099]
[1737020845490,1.50239,3328.7,3328.2,3.2078]
[1737020845690,0.60101,3328.3,3328.2,3.80881]
[1737020846587,0.60101,3328.4,3328.3,0.601]
[1737020847587,0.60096,3328.7,3328.6,0.60094]
[1737020847996,0.60094,3328.8,3328.7,0.60092]
[1737020848492,0.00352701,3328.9,3328.6,3.2078]
[1737020848789,0.00352701,3328.9,3328.6,3.80875]
[1737020848790,0.60094,3328.7,3328.6,3.80875]
[1737020849696,0.60093,3328.8,3328.7,0.60092]
[1737020850193,0.00352701,3328.9,3328.8,0.60092]
[1737020850389,0.00352701,3328.9,3328.8,1.87092]
[1737020851087,0.00352701,3328.9,3328.8,42.67092]
[1737020854191,7.01e-06,3328.9,3328.8,47.67092]
[1737020854993,7.01e-06,3328.9,3328.8,49.11936392]
[1737020855594,7.01e-06,3328.9,3328.8,54.11936392]
[1737020855795,7.01e-06,3328.9,3328.8,52.33592441]
[1737020856398,7.01e-06,3328.9,3328.8,56.11982441]
[1737020856802,7.01e-06,3328.9,3328.8,51.45482]
[1737020857702,7.01e-06,3328.9,3328.8,64.94766561]
[1737020858294,7.01e-06,3328.9,3328.8,51.45482]
[1737020858703,7.01e-06,3328.9,3328.8,5.65482]
[1737020859103,7.01e-06,3328.9,3328.8,10.65482]
[1737020859499,2.40961343,3330.5,3328.8,10.65482]
[1737020859500,3.8967,3330.5,3329.7,2.40961343]
[1737020859702,0.60065,3330.3,3330.2,0.60064]
[1737020859904,3.8967,3330.5,3330.0,1.50176]
[1737020860202,0.60064,3330.4,3330.3,0.60063]
[1737020860909,3.8967,3330.5,3329.9,3.2078]
[1737020861109,0.60069,3330.1,3330.0,0.60068]
[1737020861305,3.8967,3330.5,3329.9,3.2078]
[1737020861501,0.60068,3330.2,3330.1,0.60067]
[1737020862008,0.60069,3330.1,3330.0,0.60069]
[1737020862503,0.6007,3330.0,3329.9,3.2078]
[1737020864296,0.6007,3330.1,3330.0,0.60068]
[1737020864706,7.80788343,3330.5,3329.9,3.2078]
[1737020864906,3.8967,3330.5,3329.9,3.2078]
[1737020865208,0.6007,3330.1,3330.0,0.60067]
[1737020865408,0.60067,3330.2,3330.1,0.60066]
[1737020866004,5.39826,3330.5,3329.9,3.2078]
[1737020866203,0.6007,3330.1,3330.0,0.60069]
[1737020868107,0.6007,3330.0,3329.9,3.2078]
[1737020868410,0.6007,3330.0,3329.9,3.80852]
[1737020869309,3.8967,3330.5,3329.9,3.2078]
[1737020869504,0.6007,3330.1,3330.0,0.60067]
[1737020869911,3.8967,3330.5,3329.9,3.2078]
[1737020870100,0.60066,3330.4,3330.3,0.60063]
[1737020870809,4.49734,3330.5,3330.4,0.60063]
[1737020871210,4.49734,3330.5,3330.0,1.50176]
[1737020871211,0.60065,3330.4,3330.3,0.60063]
[1737020871511,0.60068,3330.3,3330.2,0.60066]
[1737020871913,0.6007,3330.1,3330.0,0.60068]
[1737020872607,0.60068,3330.2,3330.1,0.60066]
[1737020873516,3.8967,3330.5,3329.9,3.2078]
[1737020873714,0.6007,3330.1,3330.0,0.60069]
[1737020873909,3.8967,3330.5,3329.9,3.2078]
[1737020874114,0.60069,3330.2,3330.1,0.60067]
[1737020874316,3.8967,3330.5,3329.9,3.2078]
[1737020874512,0.60066,3330.3,3330.0,0.6007]
[1737020874713,4.49732,3330.5,3330.4,0.60063]
[1737020879923,0.60063,3330.4,3330.3,3.80844]
[1737020880310,0.60063,3330.4,3330.3,3.2078]
[1737020881122,0.60063,3330.4,3330.3,3.80845]
[1737020884026,4.49732,3330.5,3330.4,0.60063]
[1737020884321,0.60059,3330.8,3330.7,0.60057]
[1737020885024,5.34833,3331.0,3330.4,2.5505]
[1737020885219,0.60061,3330.6,3330.5,0.60058]
[1737020888318,0.60061,3330.6,3330.4,1.308]
[1737020888319,0.60063,3330.5,3330.4,0.60061]
[1737020890127,1.50137,3330.9,3330.5,0.60058]
[1737020890128,0.60061,3330.6,3330.5,0.60058]
[1737020891323,1.50143,3330.8,3330.3,6.88791343]
[1737020891627,1.50137,3330.9,3330.3,4.4783]
[1737020891628,0.60063,3330.4,3330.3,4.4783]
[1737020891928,0.60063,3330.4,3330.3,5.07895]
[1737020892521,0.60063,3330.4,3330.3,4.4783]
[1737020892828,0.60063,3330.4,3330.3,5.07895]
[1737020893525,1.268,3332.5,3330.3,4.4783]
[1737020893735,0.60059,3330.7,3330.6,0.60058]
[1737020894029,0.60059,3330.7,3330.6,5.07638]
[1737020897524,0.60059,3330.7,3330.6,5.07639]
[1737020897724,0.60059,3330.7,3330.6,3.2078]
[1737020898321,0.60065,3330.3,3330.2,3.2078]
[1737020898720,1.3029,3330.6,3330.5,0.60061]
[1737020898721,1.90351,3330.6,3330.5,0.60061]
[1737020898918,0.60065,3330.4,3330.3,0.60063]
[1737020899115,0.60062,3330.5,3330.4,0.60061]
[1737020899830,1.3029,3330.6,3330.5,0.60061]
[1737020900426,0.60057,3330.8,3330.7,0.60058]
[1737020900623,0.60057,3330.8,3330.7,3.80838]
[1737020901122,2.5967,3331.1,3330.7,3.2078]
[1737020901323,0.60056,3330.8,3330.7,3.2078]
[1737020901734,0.60056,3330.8,3330.7,3.80838]
[1737020902230,0.60056,3330.8,3330.7,3.2078]
[1737020906532,0.60058,3330.7,3330.6,0.60058]
[1737020906735,0.60058,3330.8,3330.7,0.60055]
[1737020907832,0.60059,3330.6,3330.5,3.2078]
[1737020908135,0.60059,3330.6,3330.5,3.80841]
[1737020910424,0.60059,3330.6,3330.5,3.2078]
[1737020915235,0.60059,3330.8,3330.7,0.60055]
[1737020916533,0.60058,3330.7,3330.6,1.82098]
[1737020917132,0.60058,3330.7,3330.6,3.13538]
[1737020919643,0.60056,3330.9,3330.8,0.60054]
[1737020921337,0.60054,3331.0,3330.9,0.60052]
[1737020921533,0.60054,3331.0,3330.6,2.5348]
[1737020921738,0.60057,3330.8,3330.7,0.60055]
[1737020923046,4.098,3331.1,3330.9,0.60052]
[1737020923047,0.60054,3331.0,3330.9,0.60052]
[1737020923743,2.5967,3331.1,3330.9,3.2078]
[1737020923948,2.5967,3331.1,3331.0,0.60052]
[1737020924241,3.1972,3331.1,3331.0,0.60052]
[1737020924442,0.60052,3331.0,3330.9,3.2078]
[1737020924848,0.60052,3331.0,3330.9,3.80834]
[1737020925043,0.60052,3331.0,3330.9,3.2078]
[1737020925545,0.60052,3331.0,3330.9,3.80834]
[1737020925949,2.5967,3331.1,3330.9,3.2078]
[1737020926151,1.50077,3332.2,3331.1,1.50126]
[1737020926349,1.50077,3332.2,3331.0,2.40961343]
[1737020926350,0.60038,3331.9,3331.8,0.60036]
[1737020926946,4.1482,3332.1,3331.7,1.355]
[1737020927148,2.10064,3332.9,3332.4,0.60027]
[1737020927452,2.10064,3332.9,3332.2,0.60029]
[1737020927453,0.6003,3332.3,3332.2,0.60029]
[1737020927953,5.64866,3332.9,3332.1,2.40961343]
[1737020928140,1.50027,3333.3,3332.7,3.2078]
[1737020928347,0.60016,3333.1,3332.8,0.6002]